bitfinex/quotes_ETHUSD_20250930
["timestamp","ask_amount","ask_price","bid_price","bid_amount"]
[1759249777662,7.014,4120.8,4120.6,0.002]
[1759249777865,2.42677215,4120.7,4120.6,0.002]
[1759249778899,9.44072446,4120.8,4120.6,0.002]
[1759249779094,2.42677215,4120.7,4120.6,0.002]
[1759249780375,7.1356,4120.8,4120.6,0.002]
[1759249780969,7.014,4120.7,4120.6,0.002]
[1759249781380,9.44077215,4120.7,4120.6,0.002]
[1759249781599,7.014,4120.7,4120.6,0.002]
[1759249781786,7.014,4120.7,4120.6,3.2553]
[1759249782201,9.44077215,4120.7,4120.6,2.811]
[1759249782702,7.014,4120.7,4120.6,2.811]
[1759249782872,7.014,4120.7,4120.6,3.2553]
[1759249783211,7.014,4120.7,4120.6,3.4833]
[1759249783417,7.014,4120.7,4120.6,3.2553]
[1759249783600,7.014,4120.7,4120.6,2.811]
[1759249784217,9.44077215,4120.7,4120.6,3.2553]
[1759249784418,7.014,4120.7,4120.6,2.811]
[1759249784713,9.44077215,4120.7,4120.6,2.811]
[1759249785123,7.014,4120.7,4120.6,2.811]
[1759249785991,9.44077215,4120.7,4120.6,2.811]
[1759249786212,7.014,4120.7,4120.6,2.811]
[1759249786423,9.44077215,4120.7,4120.6,2.811]
[1759249786606,7.014,4120.7,4120.6,2.811]
[1759249786938,9.44077215,4120.7,4120.6,2.811]
[1759249787312,7.014,4120.7,4120.6,2.811]
[1759249788010,9.44077215,4120.7,4120.6,2.811]
[1759249788201,9.44077215,4120.7,4120.6,0.002]
[1759249788402,9.44077215,4120.7,4120.1,0.002]
[1759249788403,11.83883104,4120.6,4120.5,2.809]
[1759249788698,12.67173104,4120.6,4120.5,2.809]
[1759249788905,2.4,4120.5,4120.1,0.002]
[1759249789101,2.42700774,4120.3,4120.2,2.809]
[1759249789300,10.15030774,4120.3,4120.2,2.809]
[1759249789519,10.27190774,4120.3,4120.2,2.809]
[1759249789724,12.67190774,4120.3,4120.2,2.809]
[1759249795327,11.96060774,4120.3,4120.2,2.809]
[1759249795916,9.5336,4120.3,4120.2,2.809]
[1759249796120,7.012,4120.3,4120.2,3.4813]
[1759249796321,7.012,4120.3,4120.2,3.82963]
[1759249796524,7.012,4120.3,4120.2,6.25669664]
[1759249801431,0.001,4120.6,4120.5,2.42688994]
[1759249801809,0.001,4120.6,4120.5,3.09918994]
[1759249802216,0.001,4120.6,4120.5,5.90718994]
[1759249802417,0.001,4120.6,4120.5,7.09104678]
[1759249803241,0.001,4120.6,4120.5,2.808]
[1759249803826,0.001,4120.6,4120.5,3.4803]
[1759249804136,0.001,4120.6,4120.5,5.93145883]
[1759249804310,0.001,4120.6,4120.5,5.90718994]
[1759249804720,0.001,4120.6,4120.5,2.808]
[1759249805435,0.001,4120.6,4120.5,5.90718994]
[1759249806235,0.001,4120.6,4120.5,6.02878994]
[1759249806447,0.001,4120.6,4120.5,0.1216]
[1759249806634,0.001,4120.6,4120.5,2.9296]
[1759249806837,0.2467,4120.6,4120.5,2.9296]
[1759249807146,0.001,4120.6,4120.5,5.35648994]
[1759249807320,0.001,4120.6,4120.5,5.89214885]
[1759249807843,7.013,4120.6,4120.5,3.46525891]
[1759249808042,7.013,4120.6,4120.5,5.89214885]
[1759249808234,7.013,4120.6,4120.5,6.33644885]
[1759249808440,7.013,4120.6,4120.5,6.56444885]
[1759249808637,7.013,4120.6,4120.5,6.12014885]
[1759249809041,7.013,4120.6,4120.5,6.56444885]
[1759249810652,7.013,4120.6,4120.5,5.89214885]
[1759249810950,7.013,4120.6,4120.5,7.29349869]
[1759249815062,7.013,4120.6,4120.5,6.62119869]
[1759249815247,7.013,4120.6,4120.5,6.85879869]
[1759249815656,7.013,4120.6,4120.5,3.81319869]
[1759249815824,7.013,4120.6,4120.5,6.62019869]
[1759249816627,7.013,4120.6,4120.5,7.28729869]
[1759249817247,7.013,4120.6,4120.5,6.62019869]
[1759249817822,7.013,4120.6,4120.5,6.86829869]
[1759249818671,7.013,4120.6,4120.5,0.85064984]
[1759249818827,7.013,4120.6,4120.5,0.1216]
[1759249818828,7.702,4120.6,4120.5,0.1216]
[1759249819032,7.702,4120.6,4120.5,2.806]
[1759249819440,7.2444,4120.6,4120.5,2.806]
[1759249820045,7.013,4120.6,4120.5,5.23288994]
[1759249820243,7.013,4120.6,4120.5,6.69387681]
[1759249820452,0.001,4120.6,4120.5,6.69387681]
[1759249820846,0.001,4120.6,4120.5,7.42294614]
[1759249821855,0.001,4121.1,4121.0,2.42659548]
[1759249822063,0.001,4121.1,4121.0,7.63259548]
[1759249822273,0.001,4121.1,4121.0,9.57352209]
[1759249823771,0.001,4121.1,4121.0,10.06297034]
[1759249824178,0.001,4121.5,4121.4,2.42635997]
[1759249824514,0.001,4121.5,4121.4,5.23235997]
[1759249824853,0.001,4121.5,4121.4,5.92735997]
[1759249825055,0.001,4121.5,4121.4,6.76273968]
[1759249825382,0.001,4121.5,4121.4,7.45173968]
[1759249825681,0.001,4121.5,4121.4,9.85173968]
[1759249826599,0.001,4121.5,4121.4,3.92437971]
[1759249826759,0.69,4121.5,4121.4,1.52437971]
[1759249826961,0.69,4121.5,4121.4,3.494]
[1759249827171,0.69,4121.5,4121.4,2.805]
[1759249827655,0.69,4121.5,4121.4,5.23135997]
[1759249828602,0.69,4121.5,4121.4,2.805]
[1759249829102,0.69,4121.5,4121.4,2.9266]
[1759249831289,7.702,4121.5,4121.1,0.72896126]
[1759249831473,7.013,4121.5,4121.2,2.9266]
[1759249831668,0.689,4121.4,4121.2,2.9266]
[1759249831893,0.689,4121.3,4121.2,2.9266]
[1759249833589,0.689,4121.3,4121.2,2.805]
[1759249834992,7.013,4121.5,4121.3,2.42641884]
[1759249835196,7.013,4121.5,4121.4,5.25562356]
[1759249835396,7.013,4121.5,4121.4,5.23135997]
[1759249836385,0.001,4122.0,4121.9,2.42606564]
[1759249836586,0.001,4122.0,4121.9,5.23006564]
[1759249836913,0.001,4122.0,4121.9,5.99568626]
[1759249837115,0.001,4122.0,4121.9,3.66679231]
[1759249837284,0.2324,4122.0,4121.9,0.09717169]
[1759249837483,0.69,4122.0,4121.9,2.90117169]
[1759249837905,0.69,4122.0,4121.9,5.32723733]
[1759249838110,0.001,4122.0,4121.9,5.32723733]
[1759249839387,0.69,4122.0,4121.2,0.52316488]
[1759249839617,2.65747924,4121.9,4121.3,2.804]
[1759249839807,0.689,4121.8,4121.4,2.804]
[1759249840011,0.689,4121.7,4121.5,2.804]
[1759249840199,2.42701969,4122.0,4121.5,2.804]
[1759249840401,3.11507537,4121.9,4121.5,2.804]
[1759249840601,0.689,4121.8,4121.6,2.804]
[1759249840918,0.7071,4121.7,4121.6,2.804]
[1759249841123,0.001,4122.0,4121.6,2.804]
[1759249841292,0.2409,4121.7,4121.6,2.804]
[1759249841796,0.7071,4121.7,4121.6,2.804]
[1759249842019,0.2409,4121.7,4121.6,2.804]
[1759249842398,0.4672,4122.0,4121.6,2.804]
[1759249842607,0.001,4122.0,4121.8,2.42607641]
[1759249842806,0.001,4122.0,4121.9,2.804]
[1759249843643,0.001,4122.0,4121.9,2.9256]
[1759249844353,0.2419,4122.0,4121.9,2.9256]
[1759249844794,0.2419,4122.0,4121.9,5.35166564]
[1759249845001,0.001,4122.0,4121.9,5.35166564]
[1759249845496,0.001,4122.0,4121.9,6.03646564]
[1759249845719,0.001,4122.0,4121.9,6.26864043]
[1759249846440,0.001,4122.0,4121.9,3.84257479]
[1759249846598,0.001,4122.0,4121.9,0.1216]
[1759249846798,0.2419,4122.0,4121.9,2.9256]
[1759249847100,0.001,4122.0,4121.9,5.35166564]
[1759249847529,0.001,4122.0,4121.9,5.58716564]
[1759249847940,0.001,4122.0,4121.9,5.91486564]
[1759249848097,0.001,4122.0,4121.9,6.7730597]
[1759249848297,0.001,4122.0,4121.9,6.0882597]
[1759249848622,0.001,4122.0,4121.9,6.7730597]
[1759249849008,0.001,4122.0,4121.9,6.0882597]
[1759249850825,0.001,4122.0,4121.9,6.3301597]
[1759249851622,0.001,4122.0,4121.9,7.0149597]
[1759249854840,0.7081,4122.0,4121.9,5.22906564]
[1759249855237,0.001,4122.0,4121.9,5.22906564]
[1759249855531,0.001,4122.0,4121.9,5.46456564]
[1759249855716,0.001,4122.0,4121.9,5.22906564]
[1759249856916,0.001,4122.0,4121.9,5.91386564]
[1759249857118,0.001,4122.0,4121.9,6.06306948]
[1759249857326,0.001,4122.0,4121.9,6.53026948]
[1759249857724,0.2419,4122.0,4121.9,6.53026948]
[1759249857924,0.7081,4122.0,4121.9,6.65186948]
[1759249858162,0.2419,4122.0,4121.9,6.65186948]
[1759249859244,0.2419,4122.0,4121.9,4.22580384]
[1759249859445,0.2419,4122.0,4121.9,3.3918]
[1759249859640,0.2419,4122.0,4121.9,5.35066564]
[1759249860192,0.7081,4122.0,4121.9,0.1216]
[1759249860482,0.7081,4122.0,4121.9,2.803]
[1759249860980,0.001,4122.0,4121.9,2.803]
[1759249861145,0.7081,4122.0,4121.9,3.20732624]
[1759249861349,0.7081,4122.0,4121.9,2.9246]
[1759249862338,0.7081,4122.0,4121.9,2.803]
[1759249863346,0.2419,4122.0,4121.9,2.803]
[1759249864165,0.7081,4122.0,4121.9,2.803]
[1759249864975,0.7081,4122.0,4121.3,0.002]
[1759249865178,0.1216,4121.7,4121.4,2.803]
[1759249865676,0.7071,4121.6,4121.5,2.803]
[1759249866485,3.13334223,4121.6,4121.5,2.803]
[1759249867375,0.7071,4121.6,4121.5,2.803]
[1759249867554,3.13334223,4121.6,4121.5,2.803]
[1759249868366,3.13334223,4121.6,4121.3,0.002]
[1759249868367,2.42635997,4121.4,4121.3,0.002]
[1759249868678,2.54795997,4121.4,4121.3,2.805]
[1759249869051,3.25505997,4121.4,4121.3,0.002]
[1759249869250,3.25505997,4121.4,4121.3,2.805]
[1759249869499,4.61519019,4121.4,4121.3,0.002]
[1759249869699,7.01519019,4121.4,4121.3,0.002]
[1759249870900,6.32545997,4121.4,4121.3,0.002]
[1759249880696,6.44705997,4121.4,4121.3,0.002]
[1759249881999,9.25005997,4121.4,4121.3,0.002]
[1759249883483,6.44705997,4121.4,4121.3,0.002]
[1759249883683,9.25005997,4121.4,4121.3,0.002]
[1759249885011,5.98085997,4121.4,4121.3,0.002]
[1759249885516,4.94795997,4121.4,4121.3,0.002]
[1759249885700,5.73995997,4121.4,4121.3,0.002]
[1759249887915,4.94795997,4121.4,4121.3,0.002]
[1759249888289,5.19465997,4121.4,4121.3,0.002]
[1759249888911,4.94795997,4121.4,4121.3,0.002]
[1759249889789,5.19465997,4121.4,4121.3,0.002]
[1759249890621,4.94795997,4121.4,4121.3,0.002]
[1759249890991,2.5216,4121.4,4121.3,0.002]
[1759249891192,2.5216,4121.4,4121.3,0.6654]
[1759249891417,4.94795997,4121.4,4121.3,0.6654]
[1759249891888,2.5216,4121.4,4121.3,0.6654]
[1759249892090,0.1216,4121.4,4121.3,0.6654]
[1759249893015,0.1216,4121.4,4121.3,1.0147666]
[1759249897333,0.1216,4121.4,4121.3,0.5854666]
[1759249897534,0.1216,4121.4,4121.3,0.2361]
[1759249897704,0.1216,4121.4,4121.3,0.6654]
[1759249898544,4.02895997,4121.4,4121.3,0.002]
[1759249898706,6.42895997,4121.4,4121.3,0.002]
[1759249898909,11.91042611,4121.4,4121.3,0.002]
[1759249899240,6.83091102,4121.4,4121.3,0.002]
[1759249899437,11.22160274,4121.1,4121.0,1e-08]
[1759249899737,14.54715379,4121.1,4121.0,1e-08]
[1759249899939,15.23615379,4121.1,4121.0,1e-08]
[1759249900241,3.21888994,4120.5,4120.4,1e-08]
[1759249900541,8.82195608,4120.5,4120.4,1e-08]
[1759249900708,9.51095608,4120.5,4120.4,1e-08]
[1759249901608,11.91095608,4120.5,4120.4,1e-08]
[1759249904323,6.30788994,4120.5,4120.4,1e-08]
[1759249904640,11.91095608,4120.5,4120.4,1e-08]
[1759249906345,3.21912555,4120.1,4119.9,0.002]
[1759249906545,14.02419169,4120.1,4119.9,0.002]
[1759249906713,11.66379169,4120.1,4119.9,0.002]
[1759249906913,5.61912555,4120.1,4119.9,0.002]
[1759249907437,4.82712555,4120.1,4120.0,0.2279]
[1759249908061,4.82712555,4120.1,4120.0,0.6957]
[1759249908938,4.94872555,4120.1,4120.0,0.002]
[1759249909330,7.14770295,4120.1,4120.0,0.002]
[1759249909642,6.47830295,4120.1,4120.0,0.002]
[1759249910233,7.14770295,4120.1,4120.0,0.002]
[1759249910656,6.35570295,4120.1,4120.0,0.002]
[1759249911156,7.14770295,4120.1,4120.0,0.002]
[1759249912725,5.61930229,4119.8,4119.7,0.002]
[1759249912926,5.97058623,4119.8,4119.7,0.002]
[1759249913160,6.76158623,4119.8,4119.7,0.002]
[1759249915767,6.09218623,4119.8,4119.7,0.002]
[1759249915971,5.74090229,4119.8,4119.7,0.002]
[1759249917561,6.41030229,4119.8,4119.7,0.002]
[1759249917893,9.21230229,4119.8,4119.7,0.002]
[1759249919377,6.41030229,4119.8,4119.7,0.002]
[1759249920371,6.41030229,4119.8,4118.2,0.659]
[1759249920372,2.42825512,4118.2,4117.4,2.42866742]
[1759249920699,6.3154687,4118.5,4117.5,1.087]
[1759249920700,6.3154687,4118.1,4117.5,1.087]
[1759249920844,6.3154687,4118.1,4117.6,2.42858557]
[1759249921384,6.3154687,4118.1,4117.5,3.51564336]
[1759249921591,6.3154687,4118.1,4117.6,2.42859118]
[1759249921883,6.3154687,4118.1,4117.6,3.02302639]
[1759249922042,6.3154687,4118.1,4117.7,2.42849893]
[1759249922268,6.3154687,4118.1,4117.7,2.42852261]
[1759249922608,6.3154687,4118.1,4117.8,0.2058]
[1759249922813,6.3154687,4118.1,4117.6,0.59443521]
[1759249922991,6.3154687,4118.1,4117.9,3.0078]
[1759249923190,2.4,4118.8,4118.0,0.2058]
[1759249923583,0.792,4119.4,4118.1,0.04838304]
[1759249923778,2.42775672,4119.1,4118.2,2.63402353]
[1759249923982,0.792,4119.2,4118.8,0.002]
[1759249924180,2.4,4119.1,4118.8,0.002]
[1759249924369,3.192,4119.6,4118.8,0.002]
[1759249924573,2.42778969,4119.0,4118.8,0.002]
[1759249925104,2.42783267,4118.9,4118.8,0.002]
[1759249925994,3.09723267,4118.9,4118.8,0.002]
[1759249926183,2.4,4119.0,4118.8,0.002]
[1759249926184,2.42771312,4119.2,4118.8,0.002]
[1759249926382,0.792,4119.4,4118.8,0.002]
[1759249926594,2.42777557,4119.0,4118.8,0.002]
[1759249926789,2.42771369,4119.2,4118.8,0.002]
[1759249926993,2.42814442,4120.1,4118.8,0.002]
[1759249927206,0.001,4120.1,4118.9,0.44879552]
[1759249927382,2.42740127,4119.7,4119.0,0.2058]
[1759249927808,2.42740127,4119.7,4119.1,0.0241]
[1759249928024,2.42751816,4119.5,4119.1,0.0241]
[1759249928170,0.6694,4120.0,4119.0,0.1817]
[1759249928171,2.42736756,4119.7,4119.0,0.1817]
[1759249928525,2.42736756,4119.7,4118.8,0.002]
[1759249928526,2.42753471,4119.5,4118.8,0.0261]
[1759249929375,2.42742962,4119.6,4118.8,0.28967843]
[1759249929802,2.42753525,4119.5,4118.8,0.28967843]
[1759249930243,2.42754977,4119.4,4118.8,0.28967843]
[1759249930413,0.1216,4119.3,4118.9,2.801]
[1759249930730,0.1216,4119.3,4119.0,2.801]
[1759249931916,2.42769631,4119.2,4119.0,2.801]
[1759249932114,2.65849631,4119.2,4119.0,2.801]
[1759249932310,2.42777373,4119.0,4118.9,2.801]
[1759249932511,3.10547373,4119.0,4118.9,2.801]
[1759249932716,3.22707373,4119.0,4118.9,2.801]
[1759249932911,2.78017373,4119.0,4118.9,2.801]
[1759249933301,0.1216,4119.0,4118.9,2.801]
[1759249935537,2.54937373,4119.0,4118.9,2.801]
[1759249936427,0.1216,4119.0,4118.9,2.801]
[1759249939930,0.1216,4119.3,4118.9,3.0068]
[1759249940134,0.1216,4119.3,4118.9,3.35683404]
[1759249940335,0.1216,4119.3,4119.0,0.2058]
[1759249940743,0.1216,4119.3,4118.9,2.801]
[1759249940953,0.6878,4119.7,4118.8,0.002]
[1759249940954,0.6878,4119.2,4118.8,0.002]
[1759249941154,2.42778458,4119.0,4118.9,2.801]
[1759249941325,2.65428458,4119.0,4118.9,2.801]
[1759249941525,2.77588458,4119.0,4118.9,2.801]
[1759249941926,2.42682774,4120.7,4118.9,2.8251]
[1759249942158,0.2265,4120.5,4119.0,0.23007773]
[1759249942339,2.88826128,4120.4,4119.2,2.42765436]
[1759249942661,2.4,4120.3,4119.2,2.42765436]
[1759249942859,2.6265,4120.3,4119.2,2.42765436]
[1759249943062,0.001,4119.5,4119.3,2.801]
[1759249943359,0.001,4119.5,4119.4,0.0241]
[1759249943565,0.001,4119.5,4119.4,0.2058]
[1759249943949,0.001,4119.5,4119.4,3.0058]
[1759249944345,0.001,4119.5,4119.4,2.8241]
[1759249945166,0.001,4119.5,4119.4,2.8]
[1759249947251,0.001,4119.5,4118.9,2.42781734]
[1759249947449,0.001,4119.5,4119.0,5.73412558]
[1759249947655,0.001,4119.5,4119.1,2.8]
[1759249947851,3.11628068,4119.5,4119.1,2.8]
[1759249948060,0.6878,4119.4,4119.1,2.8]
[1759249949675,0.001,4119.5,4119.1,2.8]
[1759249950049,0.001,4119.5,4119.3,2.42758564]
[1759249950249,0.001,4119.5,4119.3,3.2136945]
[1759249950444,0.001,4119.5,4119.4,0.2058]
[1759249950946,0.001,4119.5,4119.3,0.78610886]
[1759249951160,0.001,4119.5,4119.4,2.42753799]
[1759249951482,0.001,4119.5,4119.4,2.65761336]
[1759249951687,0.001,4119.5,4119.4,3.52475112]
[1759249952048,0.001,4119.5,4119.4,3.62207575]
[1759249952850,0.001,4119.5,4119.4,3.81283776]
[1759249953183,0.001,4119.5,4119.4,0.1216]
[1759249953555,0.001,4119.5,4119.4,2.8]
[1759249957257,0.001,4119.5,4119.1,0.1216]
[1759249957573,0.1226,4119.5,4119.2,2.799]
[1759249958701,0.001,4119.5,4119.3,0.02427596]
[1759249959202,0.001,4119.5,4119.2,3.09106]
[1759249959381,0.001,4119.5,4119.2,5.51871531]
[1759249960303,0.001,4119.5,4119.3,2.45184446]
[1759249960599,0.001,4119.5,4119.4,2.42753799]
[1759249960769,0.001,4119.5,4119.3,2.45185456]
[1759249961195,0.001,4119.5,4119.3,2.8924197]
[1759249961608,0.001,4119.5,4119.3,0.02427596]
[1759249962190,0.001,4119.5,4119.2,2.799]
[1759249962501,0.001,4119.5,4119.3,0.02427596]
[1759249963579,0.001,4119.5,4119.2,2.799]
[1759249965208,0.001,4119.5,4119.2,5.22664561]
[1759249965602,0.001,4119.5,4119.2,2.799]
[1759249966708,0.001,4119.5,4119.3,2.799]
[1759249966912,2.42753799,4119.4,4119.3,2.799]
[1759249967911,2.42762959,4119.3,4118.8,0.002]
[1759249968105,2.42762959,4119.3,4118.9,2.799]
[1759249968491,2.42760636,4119.3,4118.9,2.799]
[1759249968691,2.42755964,4119.4,4118.9,2.799]
[1759249969098,0.001,4119.5,4118.9,2.799]
[1759249969480,2.42769887,4119.2,4118.9,2.799]
[1759249970215,0.001,4119.5,4118.9,2.799]
[1759249970412,2.42771479,4119.1,4119.0,2.799]
[1759249970711,2.42783267,4118.9,4118.8,0.002]
[1759249970917,2.42783267,4118.9,4118.8,2.801]
[1759249971903,2.42783267,4118.9,4118.8,0.002]
[1759249972398,3.21983267,4118.9,4118.8,0.383]
[1759249972730,3.80886456,4118.9,4118.8,0.383]
[1759249973030,6.20886456,4118.9,4118.8,0.002]
[1759249976934,6.33046456,4118.9,4118.8,0.002]
[1759249978527,7.00476456,4118.9,4118.8,0.002]
[1759249979146,2.42757379,4119.4,4118.8,0.2078]
[1759249979147,2.42759239,4119.4,4118.8,0.2078]
[1759249979314,0.001,4119.5,4118.8,0.1837]
[1759249979315,0.1216,4119.2,4118.8,0.1837]
[1759249979946,0.1216,4119.2,4118.9,0.0241]
[1759249980443,2.54927485,4119.2,4119.0,3.0048]
[1759249980644,2.42771479,4119.1,4118.8,0.002]
[1759249980957,2.54925716,4119.2,4119.1,2.799]
[1759249981160,2.54925716,4119.2,4119.1,3.0048]
[1759249981654,0.1216,4119.2,4119.1,3.0048]
[1759249982145,2.54925585,4119.2,4119.1,3.0048]
[1759249982345,0.1216,4119.2,4119.1,3.0048]
[1759249982514,2.54925585,4119.2,4119.1,3.0048]
[1759249983149,2.54925585,4119.2,4119.1,2.8231]
[1759249983447,2.42782523,4119.0,4118.8,0.1837]
[1759249983749,2.42782523,4119.0,4118.9,2.8221]
[1759249984057,2.42782523,4119.0,4118.9,0.2058]
[1759249984256,2.42782523,4119.0,4118.9,3.0038]
[1759249985023,2.42783267,4118.9,4118.8,0.002]
[1759249985224,3.04715846,4118.9,4118.8,0.002]
[1759249985430,3.22373267,4118.9,4118.8,0.002]
[1759249985731,6.41573267,4118.9,4118.8,0.002]
[1759249987266,5.74143267,4118.9,4118.8,0.002]
[1759249987760,6.41573267,4118.9,4118.8,0.002]
[1759249990128,5.97693267,4118.9,4118.8,0.002]
[1759249990754,6.41573267,4118.9,4118.8,0.002]
[1759249990956,5.74143267,4118.9,4118.8,0.002]
[1759249991866,4.82783267,4118.9,4118.8,0.002]
[1759249993059,6.30353267,4118.9,4118.8,0.002]
[1759249995558,6.30453267,4118.9,4118.8,0.002]
[1759249998061,5.62083267,4118.9,4118.8,0.002]
[1759249999054,2.42887602,4117.2,4116.5,0.09728679]
[1759249999276,2.42887602,4117.2,4114.9,0.243]
[1759249999277,0.792,4118.1,4116.9,2.798]
[1759249999462,2.4,4118.6,4117.0,2.4976]
[1759249999769,2.42848764,4117.8,4117.1,0.2058]
[1759249999935,2.4,4118.0,4117.1,0.2058]
[1759249999936,2.42854281,4117.7,4117.2,0.0241]
[1759250000133,2.4,4118.1,4117.3,0.1817]
[1759250000463,2.42865816,4117.5,4117.4,2.798]
[1759250000778,2.42875944,4117.4,4116.6,2.4291457]
[1759250001061,0.2449,4117.8,4116.7,0.69164435]
[1759250001264,2.42895631,4117.0,4116.7,0.2058]
[1759250001450,2.42901212,4116.9,4116.8,0.6811]
[1759250001651,2.42896939,4117.0,4116.8,2.798]
[1759250001864,0.1216,4117.0,4116.8,2.798]
[1759250002169,2.42901212,4116.9,4116.6,0.2058]
[1759250002334,2.42908975,4116.8,4116.4,0.1216]
[1759250002534,2.42915747,4116.7,4116.1,0.2058]
[1759250002758,2.42915747,4116.7,4116.2,2.9196]
[1759250002962,2.42915747,4116.7,4116.3,0.2058]
[1759250003153,2.42930716,4116.4,4116.2,0.43414]
[1759250003354,2.55075747,4116.7,4116.3,2.798]
[1759250003559,2.42918913,4116.6,4116.3,2.798]
[1759250003742,2.42919904,4116.6,4116.3,2.798]
[1759250004578,2.4,4116.6,4114.6,0.0241]
[1759250004735,0.792,4116.4,4114.7,5.43410934]
[1759250004938,2.42968835,4115.8,4115.0,2.43012932]
[1759250005138,2.42972714,4115.7,4115.1,0.2058]
[1759250005443,2.42979069,4115.6,4115.1,0.2058]
[1759250005767,0.6831,4116.3,4115.1,0.2058]
[1759250005941,2.429638,4115.9,4115.2,0.02430015]
[1759250006269,4.82905487,4116.9,4115.3,0.1817]
[1759250006473,2.42935135,4116.4,4115.4,2.45397891]
[1759250006669,2.42943391,4116.2,4115.5,0.2058]
[1759250006870,2.42944158,4116.2,4115.6,2.8221]
[1759250007169,2.42934737,4116.4,4115.6,2.8221]
[1759250007367,4.82926251,4116.5,4115.6,2.8221]
[1759250007555,2.4295363,4116.1,4115.7,2.798]
[1759250007872,2.42930716,4116.4,4115.7,2.798]
[1759250008069,2.798,4117.4,4115.7,2.798]
[1759250008070,0.2449,4117.0,4115.8,3.0038]
[1759250008257,0.2449,4117.0,4115.7,0.30038]
[1759250008258,2.42907034,4116.9,4115.9,0.2058]
[1759250008447,2.4,4117.0,4116.0,2.8221]
[1759250008636,2.42914484,4116.7,4116.0,2.8221]
[1759250008855,2.6449,4117.0,4116.1,0.40063392]
[1759250009183,2.42907112,4116.8,4116.2,2.798]
[1759250009384,2.42904886,4116.9,4116.2,2.798]
[1759250009704,2.42914881,4116.7,4116.2,2.798]
[1759250010009,0.6831,4116.7,4116.3,2.798]
[1759250010293,2.42918913,4116.6,4116.3,2.798]
[1759250010496,0.792,4117.3,4116.3,2.798]
[1759250010658,2.4,4116.9,4113.2,0.12689892]
[1759250010864,0.792,4116.7,4114.5,0.0241]
[1759250011062,2.43013298,4115.1,4114.5,0.0241]
[1759250011593,2.43001354,4115.3,4114.5,0.0241]
[1759250011764,2.43001354,4115.3,4114.6,0.54342786]
[1759250011963,2.4,4115.5,4114.6,0.54342786]
[1759250012165,2.42991192,4115.4,4114.7,0.0241]
[1759250012372,2.42985307,4115.5,4114.7,0.0241]
[1759250012561,2.4,4115.4,4114.7,0.0241]
[1759250012758,2.4,4115.6,4114.8,0.02430251]
[1759250012962,0.4382,4115.7,4114.7,0.0241]
[1759250013190,0.6831,4115.7,4114.7,0.0241]
[1759250013394,2.43005801,4115.2,4114.7,0.0241]
[1759250013580,2.4,4115.6,4114.7,0.0241]
[1759250013980,2.43013028,4115.1,4114.7,0.0241]
[1759250014170,0.792,4115.4,4114.1,0.1817]
[1759250014369,2.43021929,4114.9,4114.6,0.002]
[1759250014692,2.55174186,4115.0,4114.6,0.002]
[1759250014898,2.43019871,4114.9,4114.6,0.002]
[1759250015592,2.43021494,4114.9,4114.6,0.002]
[1759250015780,0.1216,4115.0,4114.6,0.002]
[1759250016168,2.55173982,4115.0,4114.6,0.002]
[1759250016361,2.55178087,4115.0,4114.6,0.002]
[1759250016565,0.1216,4115.0,4114.6,0.002]
[1759250018295,2.43023368,4114.9,4114.6,0.002]
[1759250018670,0.8047,4115.0,4114.6,0.002]
[1759250018994,0.3665,4115.0,4114.6,0.002]
[1759250019167,0.1216,4115.0,4114.6,0.002]
[1759250019364,0.1216,4115.0,4114.6,0.25740784]
[1759250019591,0.1216,4115.4,4114.8,0.1216]
[1759250019898,0.1216,4115.4,4114.9,2.801]
[1759250020110,0.1216,4115.4,4115.0,0.02430133]
[1759250020286,0.1216,4115.4,4115.0,0.04840133]
[1759250020709,0.1216,4115.4,4115.0,0.02430133]
[1759250021015,0.1216,4115.8,4115.2,0.1216]
[1759250021477,0.2453,4115.7,4115.3,2.802]
[1759250021679,2.42990464,4115.4,4115.0,0.1216]
[1759250022082,2.42990464,4115.4,4115.1,2.802]
[1759250022276,0.2453,4115.3,4115.1,2.802]
[1759250022810,2.5514492,4115.5,4115.1,2.802]
[1759250022994,0.1216,4115.5,4115.1,2.802]
[1759250023513,0.2453,4116.2,4115.2,2.78169507]
[1759250023684,0.2453,4116.2,4115.2,2.78170146]
[1759250023685,0.1216,4115.8,4115.2,2.78170146]
[1759250024116,2.5512641,4115.8,4115.2,0.14590015]
[1759250024320,2.5512641,4115.8,4114.7,2.4303023]
[1759250024321,0.4446,4115.7,4114.7,2.4303023]
[1759250024615,0.1216,4115.5,4115.0,0.1216]
[1759250024986,0.3669,4115.5,4115.0,0.1216]
[1759250025400,0.8115,4115.5,4115.0,0.1216]
[1759250025794,0.2453,4115.4,4115.0,0.1216]
[1759250025998,2.42991437,4115.4,4115.1,2.802]
[1759250026199,0.6899,4115.3,4115.1,2.802]
[1759250026597,0.1216,4115.5,4115.1,2.802]
[1759250027515,0.3669,4115.5,4115.1,2.802]
[1759250027732,0.1216,4115.5,4115.1,2.802]
[1759250027901,0.4446,4115.9,4115.2,0.02430015]
[1759250027902,0.2453,4115.8,4115.2,0.02430015]
[1759250028102,0.1216,4115.8,4115.2,0.02430015]
[1759250028630,2.55128463,4115.8,4115.1,3.11846]
[1759250028929,2.55128463,4115.8,4115.1,3.09436]
[1759250029297,0.1216,4115.8,4115.2,0.02430015]